[Event "Titled Tuesday Blitz February 22 Late 2022"]
[White "Moroni, Luca Jr"]
[Black "Papasimakopoulos, Alexandros"]
[WhiteFideId "865834"]
[BlackFideId "4244125"]
[WhiteElo "2573"]
[BlackElo "2340"]
[Result "1-0"]
[Round "05"]
[TimeControl "180+1"]
[Date "2022.02.22"]
[WhiteClock "0:00:35"]
[BlackClock "0:00:12"]

1. d4 {[%clk 0:03:00]}  e6 {[%clk 0:03:00]} 2. c4 {[%clk 0:02:58]}  Nf6 {[%clk 0:02:58]} 3. Nc3 {[%clk 0:02:58]}  Bb4 {[%clk 0:02:58]} 4. Nf3 {[%clk 0:02:57]}  c5 {[%clk 0:02:58]} 5. g3 {[%clk 0:02:56]}  cxd4 {[%clk 0:02:57]} 6. Nxd4 {[%clk 0:02:57]}  d5 {[%clk 0:02:57]} 7. Bg2 {[%clk 0:02:55]}  O-O {[%clk 0:02:57]} 8. O-O {[%clk 0:02:53]}  Nc6 {[%clk 0:02:57]} 9. cxd5 {[%clk 0:02:51]}  Nxd5 {[%clk 0:02:50]} 10. Nxd5 {[%clk 0:02:49]}  exd5 {[%clk 0:02:51]} 11. Be3 {[%clk 0:02:46]}  Be7 {[%clk 0:02:41]} 12. Rc1 {[%clk 0:02:45]}  Ne5 {[%clk 0:02:41]} 13. Bf4 {[%clk 0:02:44]}  Ng6 {[%clk 0:02:32]} 14. Bc7 {[%clk 0:02:28]}  Qd7 {[%clk 0:02:29]} 15. Qb3 {[%clk 0:02:25]}  Bf6 {[%clk 0:02:24]} 16. Rfd1 {[%clk 0:02:23]}  Qg4 {[%clk 0:02:08]} 17. Bf3 {[%clk 0:02:14]}  Qg5 {[%clk 0:02:01]} 18. Qxd5 {[%clk 0:02:10]}  Ne5 {[%clk 0:02:00]} 19. Bg2 {[%clk 0:01:58]}  Ng4 {[%clk 0:01:42]} 20. Qxg5 {[%clk 0:01:55]}  Bxg5 {[%clk 0:01:43]} 21. Bf4 {[%clk 0:01:47]}  Bxf4 {[%clk 0:01:30]} 22. gxf4 {[%clk 0:01:48]}  a6 {[%clk 0:01:24]} 23. Rc7 {[%clk 0:01:47]}  Rb8 {[%clk 0:01:25]} 24. e3 {[%clk 0:01:42]}  Nf6 {[%clk 0:01:24]} 25. Rdc1 {[%clk 0:01:40]}  g6 {[%clk 0:01:22]} 26. R1c3 {[%clk 0:01:33]}  Kg7 {[%clk 0:01:19]} 27. b4 {[%clk 0:01:13]}  b5 {[%clk 0:01:16]} 28. a3 {[%clk 0:01:06]}  Rd8 {[%clk 0:01:06]} 29. Bf3 {[%clk 0:00:52]}  Bh3 {[%clk 0:01:03]} 30. Bg2 {[%clk 0:00:47]}  Bc8 {[%clk 0:01:00]} 31. h4 {[%clk 0:00:45]}  Re8 {[%clk 0:00:53]} 32. Kh2 {[%clk 0:00:43]}  h5 {[%clk 0:00:50]} 33. Kg3 {[%clk 0:00:43]}  Kf8 {[%clk 0:00:41]} 34. Ra7 {[%clk 0:00:43]}  Ng8 {[%clk 0:00:28]} 35. Rcc7 {[%clk 0:00:40]}  Nh6 {[%clk 0:00:28]} 36. Bd5 {[%clk 0:00:37]}  Be6 {[%clk 0:00:19]} 37. Bxe6 {[%clk 0:00:36]}  fxe6 {[%clk 0:00:19]} 38. Rh7 {[%clk 0:00:36]}  e5 {[%clk 0:00:15]} 39. Rxh6 {[%clk 0:00:35]}  exd4 {[%clk 0:00:12]} 40. Rh8# {[%clk 0:00:35]} 1-0


[Site "https://www.chess.com"]

[Event "Titled Tuesday Blitz February 22 Late 2022"]
[White "Murzin, Volodar"]
[Black "Shirazi, Kamran"]
[WhiteFideId "44155573"]
[BlackFideId "2000733"]
[WhiteElo "2585"]
[BlackElo "2317"]
[Result "1-0"]
[Round "05"]
[TimeControl "180+1"]
[Date "2022.02.23"]
[WhiteClock "0:00:24"]
[BlackClock "0:00:16"]

1. e4 {[%clk 0:03:00]}  d5 {[%clk 0:03:00]} 2. exd5 {[%clk 0:03:00]}  c6 {[%clk 0:03:01]} 3. dxc6 {[%clk 0:02:59]}  Nxc6 {[%clk 0:03:01]} 4. Nf3 {[%clk 0:02:58]}  e5 {[%clk 0:03:02]} 5. Nc3 {[%clk 0:02:56]}  Bd6 {[%clk 0:03:01]} 6. Bc4 {[%clk 0:02:54]}  h6 {[%clk 0:02:49]} 7. O-O {[%clk 0:02:52]}  Nf6 {[%clk 0:02:40]} 8. d3 {[%clk 0:02:49]}  O-O {[%clk 0:02:39]} 9. Ne4 {[%clk 0:02:48]}  Bc7 {[%clk 0:02:33]} 10. h3 {[%clk 0:02:22]}  Re8 {[%clk 0:02:29]} 11. Re1 {[%clk 0:02:19]}  a6 {[%clk 0:02:28]} 12. Bd2 {[%clk 0:02:13]}  b5 {[%clk 0:02:26]} 13. Bb3 {[%clk 0:02:13]}  Na5 {[%clk 0:02:16]} 14. Nxf6+ {[%clk 0:02:07]}  Qxf6 {[%clk 0:02:15]} 15. Bd5 {[%clk 0:02:07]}  Rb8 {[%clk 0:02:11]} 16. d4 {[%clk 0:01:58]}  Bb7 {[%clk 0:01:35]} 17. dxe5 {[%clk 0:01:52]}  Bxe5 {[%clk 0:01:16]} 18. Bxa5 {[%clk 0:01:49]}  Bxb2 {[%clk 0:01:15]} 19. Rxe8+ {[%clk 0:01:44]}  Rxe8 {[%clk 0:01:14]} 20. Rb1 {[%clk 0:01:45]}  Bxd5 {[%clk 0:01:01]} 21. Qxd5 {[%clk 0:01:45]}  Bc3 {[%clk 0:01:01]} 22. Bxc3 {[%clk 0:01:37]}  Qxc3 {[%clk 0:01:02]} 23. Qb3 {[%clk 0:01:36]}  Qc5 {[%clk 0:01:01]} 24. Rd1 {[%clk 0:01:33]}  Qf5 {[%clk 0:00:58]} 25. c4 {[%clk 0:01:25]}  Re2 {[%clk 0:00:50]} 26. cxb5 {[%clk 0:00:57]}  axb5 {[%clk 0:00:48]} 27. Rd5 {[%clk 0:00:48]}  Qf4 {[%clk 0:00:40]} 28. Rd8+ {[%clk 0:00:44]}  Kh7 {[%clk 0:00:38]} 29. Qd3+ {[%clk 0:00:39]}  Qe4 {[%clk 0:00:37]} 30. Qxe4+ {[%clk 0:00:39]}  Rxe4 {[%clk 0:00:37]} 31. Rd2 {[%clk 0:00:40]}  g5 {[%clk 0:00:35]} 32. Rb2 {[%clk 0:00:39]}  b4 {[%clk 0:00:35]} 33. Kf1 {[%clk 0:00:39]}  Kg6 {[%clk 0:00:34]} 34. Nd2 {[%clk 0:00:39]}  Rd4 {[%clk 0:00:33]} 35. Ke2 {[%clk 0:00:40]}  Kf5 {[%clk 0:00:33]} 36. Ke3 {[%clk 0:00:40]}  Rh4 {[%clk 0:00:29]} 37. Kd3 {[%clk 0:00:32]}  Ke6 {[%clk 0:00:29]} 38. Nc4 {[%clk 0:00:28]}  Kd5 {[%clk 0:00:23]} 39. Rxb4 {[%clk 0:00:20]}  Rd4+ {[%clk 0:00:23]} 40. Kc3 {[%clk 0:00:19]}  Kc5 {[%clk 0:00:12]} 41. Rb5+ {[%clk 0:00:19]}  Kxb5 {[%clk 0:00:12]} 42. Kxd4 {[%clk 0:00:19]}  Ka4 {[%clk 0:00:12]} 43. Nd6 {[%clk 0:00:20]}  f6 {[%clk 0:00:11]} 44. Ne4 {[%clk 0:00:20]}  f5 {[%clk 0:00:11]} 45. Nd6 {[%clk 0:00:20]}  f4 {[%clk 0:00:11]} 46. Nf7 {[%clk 0:00:20]}  Ka3 {[%clk 0:00:12]} 47. Nxh6 {[%clk 0:00:20]}  Kxa2 {[%clk 0:00:11]} 48. Ke4 {[%clk 0:00:20]}  f3 {[%clk 0:00:12]} 49. Kxf3 {[%clk 0:00:20]}  g4+ {[%clk 0:00:12]} 50. Nxg4 {[%clk 0:00:21]}  Kb3 {[%clk 0:00:12]} 51. h4 {[%clk 0:00:22]}  Kc4 {[%clk 0:00:13]} 52. h5 {[%clk 0:00:23]}  Kd5 {[%clk 0:00:13]} 53. h6 {[%clk 0:00:24]}  Ke6 {[%clk 0:00:14]} 54. h7 {[%clk 0:00:24]}  Kf7 {[%clk 0:00:15]} 55. h8=Q {[%clk 0:00:25]}  Kg6 {[%clk 0:00:15]} 56. Qf6+ {[%clk 0:00:24]}  Kh5 {[%clk 0:00:16]} 57. Qh6# {[%clk 0:00:24]} 1-0


[Site "https://www.chess.com"]

[Event "Titled Tuesday Blitz February 22 Late 2022"]
[White "Nakamura, Hikaru"]
[Black "Jones, Gawain C B"]
[WhiteFideId "2016192"]
[BlackFideId "409561"]
[WhiteElo "2850"]
[BlackElo "2657"]
[Result "1-0"]
[Round "05"]
[TimeControl "180+1"]
[Date "2022.02.22"]
[WhiteClock "0:00:46"]
[BlackClock "0:00:19"]

1. Nf3 {[%clk 0:03:00]}  Nf6 {[%clk 0:02:59]} 2. b3 {[%clk 0:02:57]}  g6 {[%clk 0:02:58]} 3. d4 {[%clk 0:02:57]}  Bg7 {[%clk 0:02:58]} 4. Bb2 {[%clk 0:02:58]}  O-O {[%clk 0:02:58]} 5. e3 {[%clk 0:02:58]}  c5 {[%clk 0:02:58]} 6. dxc5 {[%clk 0:02:58]}  Qa5+ {[%clk 0:02:54]} 7. c3 {[%clk 0:02:58]}  Qxc5 {[%clk 0:02:49]} 8. Ba3 {[%clk 0:02:58]}  Qa5 {[%clk 0:02:48]} 9. Bxe7 {[%clk 0:02:56]}  Re8 {[%clk 0:02:48]} 10. Bxf6 {[%clk 0:02:57]}  Bxf6 {[%clk 0:02:48]} 11. Qd2 {[%clk 0:02:58]}  d5 {[%clk 0:02:43]} 12. Be2 {[%clk 0:02:57]}  Nc6 {[%clk 0:02:41]} 13. O-O {[%clk 0:02:54]}  Bg4 {[%clk 0:02:41]} 14. b4 {[%clk 0:02:28]}  Qc7 {[%clk 0:02:20]} 15. Na3 {[%clk 0:02:27]}  Bxf3 {[%clk 0:01:54]} 16. Bxf3 {[%clk 0:02:27]}  Ne5 {[%clk 0:01:54]} 17. Be2 {[%clk 0:02:23]}  Red8 {[%clk 0:01:33]} 18. Nb5 {[%clk 0:02:22]}  Qe7 {[%clk 0:01:29]} 19. Rfd1 {[%clk 0:02:15]}  a6 {[%clk 0:01:28]} 20. Nd4 {[%clk 0:02:15]}  Rac8 {[%clk 0:01:28]} 21. Rac1 {[%clk 0:02:16]}  h5 {[%clk 0:01:24]} 22. h3 {[%clk 0:02:16]}  Kg7 {[%clk 0:01:16]} 23. Qc2 {[%clk 0:02:12]}  Nc6 {[%clk 0:01:12]} 24. Qb2 {[%clk 0:02:03]}  Ne5 {[%clk 0:01:07]} 25. Qb3 {[%clk 0:02:02]}  Qe8 {[%clk 0:00:55]} 26. Nf3 {[%clk 0:01:49]}  b6 {[%clk 0:00:38]} 27. Bxa6 {[%clk 0:01:41]}  Nxf3+ {[%clk 0:00:38]} 28. gxf3 {[%clk 0:01:42]}  Rc7 {[%clk 0:00:34]} 29. Rxd5 {[%clk 0:01:07]}  Rxd5 {[%clk 0:00:34]} 30. Qxd5 {[%clk 0:01:08]}  Rxc3 {[%clk 0:00:33]} 31. Rxc3 {[%clk 0:01:08]}  Bxc3 {[%clk 0:00:34]} 32. Qb3 {[%clk 0:01:09]}  Bf6 {[%clk 0:00:31]} 33. Bc4 {[%clk 0:01:07]}  Qd7 {[%clk 0:00:31]} 34. Kg2 {[%clk 0:01:08]}  g5 {[%clk 0:00:29]} 35. a4 {[%clk 0:01:01]}  g4 {[%clk 0:00:29]} 36. hxg4 {[%clk 0:01:02]}  hxg4 {[%clk 0:00:30]} 37. Be2 {[%clk 0:01:02]}  gxf3+ {[%clk 0:00:29]} 38. Bxf3 {[%clk 0:01:03]}  Qf5 {[%clk 0:00:27]} 39. Qc4 {[%clk 0:00:59]}  Be7 {[%clk 0:00:24]} 40. Qd4+ {[%clk 0:00:46]}  Kf8 {[%clk 0:00:19]} 41. Qh8# {[%clk 0:00:46]} 1-0


[Site "https://www.chess.com"]

[Event "Titled Tuesday Blitz February 22 Late 2022"]
[White "Nasuta, Grzegorz"]
[Black "Kukhmazov, Arsen"]
[WhiteFideId "1141686"]
[BlackFideId "24108260"]
[WhiteElo "2396"]
[BlackElo "2487"]
[Result "1-0"]
[Round "05"]
[TimeControl "180+1"]
[Date "2022.02.22"]
[WhiteClock "0:00:04"]
[BlackClock "0:00:06"]

1. e4 {[%clk 0:03:00]}  c6 {[%clk 0:03:00]} 2. d4 {[%clk 0:03:00]}  d5 {[%clk 0:03:00]} 3. Nc3 {[%clk 0:03:00]}  dxe4 {[%clk 0:03:00]} 4. Nxe4 {[%clk 0:03:01]}  Bf5 {[%clk 0:03:01]} 5. Ng3 {[%clk 0:03:01]}  Bg6 {[%clk 0:03:01]} 6. h4 {[%clk 0:02:46]}  h6 {[%clk 0:03:01]} 7. Nf3 {[%clk 0:02:46]}  e6 {[%clk 0:03:02]} 8. Ne5 {[%clk 0:02:45]}  Bh7 {[%clk 0:03:02]} 9. Bd3 {[%clk 0:02:45]}  Bxd3 {[%clk 0:03:02]} 10. Qxd3 {[%clk 0:02:46]}  Nd7 {[%clk 0:03:03]} 11. Qe2 {[%clk 0:02:45]}  Ngf6 {[%clk 0:02:29]} 12. Bd2 {[%clk 0:02:43]}  Be7 {[%clk 0:02:21]} 13. O-O-O {[%clk 0:02:42]}  Nxe5 {[%clk 0:02:21]} 14. dxe5 {[%clk 0:02:42]}  Nd7 {[%clk 0:02:22]} 15. h5 {[%clk 0:01:55]}  Qc7 {[%clk 0:02:20]} 16. f4 {[%clk 0:01:55]}  O-O-O {[%clk 0:02:20]} 17. Be3 {[%clk 0:01:25]}  Nb6 {[%clk 0:02:15]} 18. Ne4 {[%clk 0:01:22]}  Nd5 {[%clk 0:02:04]} 19. g3 {[%clk 0:01:21]}  Kb8 {[%clk 0:02:03]} 20. a3 {[%clk 0:01:17]}  f5 {[%clk 0:01:20]} 21. exf6 {[%clk 0:01:12]}  gxf6 {[%clk 0:01:21]} 22. Bc5 {[%clk 0:01:02]}  f5 {[%clk 0:01:16]} 23. Bxe7 {[%clk 0:01:02]}  Qxe7 {[%clk 0:01:17]} 24. Nf2 {[%clk 0:00:59]}  Qf6 {[%clk 0:01:14]} 25. Rhe1 {[%clk 0:00:55]}  Rhe8 {[%clk 0:01:09]} 26. c4 {[%clk 0:00:53]}  Nb6 {[%clk 0:01:09]} 27. Rxd8+ {[%clk 0:00:49]}  Qxd8 {[%clk 0:01:10]} 28. Qe5+ {[%clk 0:00:44]}  Qc7 {[%clk 0:01:10]} 29. b3 {[%clk 0:00:21]}  Qxe5 {[%clk 0:01:05]} 30. Rxe5 {[%clk 0:00:22]}  Nd7 {[%clk 0:01:06]} 31. Re3 {[%clk 0:00:22]}  Nf6 {[%clk 0:01:05]} 32. Kc2 {[%clk 0:00:07]}  Kc7 {[%clk 0:01:04]} 33. Kc3 {[%clk 0:00:06]}  Kd7 {[%clk 0:00:59]} 34. Nd3 {[%clk 0:00:06]}  Nxh5 {[%clk 0:00:52]} 35. Nc5+ {[%clk 0:00:06]}  Kc8 {[%clk 0:00:49]} 36. Kd4 {[%clk 0:00:02]}  Nf6 {[%clk 0:00:44]} 37. Rxe6 {[%clk 0:00:02]}  Rxe6 {[%clk 0:00:24]} 38. Nxe6 {[%clk 0:00:03]}  Nh5 {[%clk 0:00:24]} 39. Ke5 {[%clk 0:00:03]}  Nxg3 {[%clk 0:00:25]} 40. Kf6 {[%clk 0:00:03]}  Kd7 {[%clk 0:00:22]} 41. Ng7 {[%clk 0:00:04]}  Ne4+ {[%clk 0:00:06]} 42. Kxf5 {[%clk 0:00:03]}  Nd2 {[%clk 0:00:07]} 43. Kg6 {[%clk 0:00:03]}  Nxb3 {[%clk 0:00:06]} 44. f5 {[%clk 0:00:04]}  Ke7 {[%clk 0:00:03]} 45. f6+ {[%clk 0:00:04]}  Kd6 {[%clk 0:00:02]} 46. f7 {[%clk 0:00:03]}  Ke7 {[%clk 0:00:02]} 47. Ne6 {[%clk 0:00:04]}  Kxe6 {[%clk 0:00:03]} 48. f8=Q {[%clk 0:00:04]}  Ke5 {[%clk 0:00:03]} 49. Qf6+ {[%clk 0:00:04]}  Ke4 {[%clk 0:00:03]} 50. Qe7+ {[%clk 0:00:04]}  Kd4 {[%clk 0:00:03]} 51. Qxb7 {[%clk 0:00:04]}  Kxc4 {[%clk 0:00:04]} 52. Qxc6+ {[%clk 0:00:04]}  Nc5 {[%clk 0:00:05]} 53. Kxh6 {[%clk 0:00:04]}  a5 {[%clk 0:00:06]} 54. Kg5 {[%clk 0:00:04]}  a4 {[%clk 0:00:07]} 55. Kf4 {[%clk 0:00:04]}  Kd4 {[%clk 0:00:07]} 56. Kf3 {[%clk 0:00:04]}  Nb3 {[%clk 0:00:03]} 57. Qxa4+ {[%clk 0:00:04]}  Kc3 {[%clk 0:00:04]} 58. Qb4+ {[%clk 0:00:04]}  Kd3 {[%clk 0:00:04]} 59. a4 {[%clk 0:00:04]}  Nd4+ {[%clk 0:00:04]} 60. Kg4 {[%clk 0:00:05]}  Nc2 {[%clk 0:00:04]} 61. Qb5+ {[%clk 0:00:05]}  Kd4 {[%clk 0:00:04]} 62. a5 {[%clk 0:00:04]}  Ne3+ {[%clk 0:00:05]} 63. Kh5 {[%clk 0:00:05]}  Nd5 {[%clk 0:00:06]} 64. a6 {[%clk 0:00:04]} 1-0


[Site "https://www.chess.com"]

[Event "Titled Tuesday Blitz February 22 Late 2022"]
[White "Nesterov, Arseniy"]
[Black "Carlsson, Ludvig"]
[WhiteFideId "24198455"]
[BlackFideId "1727010"]
[WhiteElo "2489"]
[BlackElo "2178"]
[Result "1-0"]
[Round "05"]
[TimeControl "180+1"]
[Date "2022.02.23"]
[WhiteClock "0:00:14"]
[BlackClock "0:00:12"]

1. d4 {[%clk 0:03:00]}  d5 {[%clk 0:02:59]} 2. c4 {[%clk 0:03:01]}  c6 {[%clk 0:02:59]} 3. Nc3 {[%clk 0:03:01]}  Nf6 {[%clk 0:03:00]} 4. e3 {[%clk 0:03:01]}  e6 {[%clk 0:02:55]} 5. Nf3 {[%clk 0:03:01]}  Nbd7 {[%clk 0:02:55]} 6. Bd3 {[%clk 0:03:01]}  Bd6 {[%clk 0:02:45]} 7. O-O {[%clk 0:03:01]}  O-O {[%clk 0:02:44]} 8. e4 {[%clk 0:03:01]}  dxc4 {[%clk 0:02:42]} 9. Bxc4 {[%clk 0:03:01]}  e5 {[%clk 0:02:43]} 10. Be3 {[%clk 0:03:00]}  b5 {[%clk 0:02:37]} 11. Bb3 {[%clk 0:02:58]}  Bb7 {[%clk 0:02:37]} 12. dxe5 {[%clk 0:02:48]}  Nxe5 {[%clk 0:02:38]} 13. Nd4 {[%clk 0:02:42]}  Neg4 {[%clk 0:02:34]} 14. Bg5 {[%clk 0:02:09]}  Bxh2+ {[%clk 0:02:29]} 15. Kh1 {[%clk 0:02:09]}  Be5 {[%clk 0:02:28]} 16. Nf5 {[%clk 0:01:23]}  Qxd1 {[%clk 0:02:19]} 17. Raxd1 {[%clk 0:01:23]}  Bxc3 {[%clk 0:02:18]} 18. bxc3 {[%clk 0:01:24]}  Nxe4 {[%clk 0:02:18]} 19. Bh4 {[%clk 0:01:25]}  Nxc3 {[%clk 0:02:12]} 20. Rd7 {[%clk 0:01:18]}  Bc8 {[%clk 0:02:05]} 21. Ne7+ {[%clk 0:01:15]}  Kh8 {[%clk 0:02:05]} 22. Nxc8 {[%clk 0:01:10]}  Raxc8 {[%clk 0:02:06]} 23. Be7 {[%clk 0:01:04]}  Ne5 {[%clk 0:01:54]} 24. Rxa7 {[%clk 0:01:02]}  Ra8 {[%clk 0:01:53]} 25. Bxf8 {[%clk 0:00:54]}  Rxa7 {[%clk 0:01:52]} 26. Bc5 {[%clk 0:00:55]}  Rd7 {[%clk 0:01:49]} 27. Re1 {[%clk 0:00:54]}  f6 {[%clk 0:00:43]} 28. f4 {[%clk 0:00:53]}  Na4 {[%clk 0:00:09]} 29. Bxa4 {[%clk 0:00:44]}  bxa4 {[%clk 0:00:10]} 30. fxe5 {[%clk 0:00:44]}  fxe5 {[%clk 0:00:10]} 31. Rxe5 {[%clk 0:00:44]}  h6 {[%clk 0:00:11]} 32. Re6 {[%clk 0:00:34]}  Rc7 {[%clk 0:00:11]} 33. Re4 {[%clk 0:00:33]}  Kg8 {[%clk 0:00:08]} 34. Rxa4 {[%clk 0:00:32]}  Kf7 {[%clk 0:00:09]} 35. Re4 {[%clk 0:00:24]}  g5 {[%clk 0:00:08]} 36. a4 {[%clk 0:00:24]}  Rb7 {[%clk 0:00:06]} 37. Rb4 {[%clk 0:00:11]}  Rxb4 {[%clk 0:00:03]} 38. Bxb4 {[%clk 0:00:12]}  Ke6 {[%clk 0:00:04]} 39. g4 {[%clk 0:00:08]}  Kd7 {[%clk 0:00:05]} 40. Bf8 {[%clk 0:00:08]}  c5 {[%clk 0:00:04]} 41. Bxc5 {[%clk 0:00:08]}  Kc6 {[%clk 0:00:04]} 42. Bf8 {[%clk 0:00:09]}  Kb6 {[%clk 0:00:05]} 43. Bxh6 {[%clk 0:00:09]}  Ka5 {[%clk 0:00:06]} 44. Bxg5 {[%clk 0:00:10]}  Kxa4 {[%clk 0:00:07]} 45. Kg2 {[%clk 0:00:11]}  Kb5 {[%clk 0:00:08]} 46. Kf3 {[%clk 0:00:11]}  Kc6 {[%clk 0:00:09]} 47. Kf4 {[%clk 0:00:12]}  Kd7 {[%clk 0:00:09]} 48. Kf5 {[%clk 0:00:12]}  Ke8 {[%clk 0:00:10]} 49. Bf6 {[%clk 0:00:13]}  Kf7 {[%clk 0:00:11]} 50. g5 {[%clk 0:00:13]}  Kg8 {[%clk 0:00:11]} 51. Kg6 {[%clk 0:00:13]}  Kf8 {[%clk 0:00:12]} 52. Kh7 {[%clk 0:00:14]} 1-0


[Site "https://www.chess.com"]

[Event "Titled Tuesday Blitz February 22 Late 2022"]
[White "Niemann, Hans Moke"]
[Black "Guliyev, Namig"]
[WhiteFideId "2093596"]
[BlackFideId "13400363"]
[WhiteElo "2636"]
[BlackElo "2487"]
[Result "1-0"]
[Round "05"]
[TimeControl "180+1"]
[Date "2022.02.22"]
[WhiteClock "0:01:34"]
[BlackClock "0:00:14"]

1. d4 {[%clk 0:03:00]}  d5 {[%clk 0:02:58]} 2. Nc3 {[%clk 0:03:01]}  Nf6 {[%clk 0:02:56]} 3. Bf4 {[%clk 0:03:01]}  c6 {[%clk 0:02:54]} 4. e3 {[%clk 0:03:01]}  Bf5 {[%clk 0:02:51]} 5. Bd3 {[%clk 0:03:00]}  Bxd3 {[%clk 0:02:51]} 6. cxd3 {[%clk 0:02:58]}  e6 {[%clk 0:02:51]} 7. Nf3 {[%clk 0:02:53]}  Bd6 {[%clk 0:02:38]} 8. Qb3 {[%clk 0:02:52]}  Bxf4 {[%clk 0:02:25]} 9. exf4 {[%clk 0:02:51]}  Qb6 {[%clk 0:02:12]} 10. Qc2 {[%clk 0:02:50]}  O-O {[%clk 0:02:10]} 11. O-O {[%clk 0:02:50]}  Ne8 {[%clk 0:02:09]} 12. Ne2 {[%clk 0:02:42]}  Nd6 {[%clk 0:02:09]} 13. a4 {[%clk 0:02:36]}  a5 {[%clk 0:02:08]} 14. b3 {[%clk 0:02:27]}  Na6 {[%clk 0:02:08]} 15. Rab1 {[%clk 0:02:26]}  Nb4 {[%clk 0:02:07]} 16. Qd2 {[%clk 0:02:26]}  Rac8 {[%clk 0:02:03]} 17. Rfc1 {[%clk 0:02:26]}  Rc7 {[%clk 0:02:02]} 18. h4 {[%clk 0:02:15]}  Qa6 {[%clk 0:02:00]} 19. Rd1 {[%clk 0:02:13]}  b6 {[%clk 0:01:57]} 20. h5 {[%clk 0:02:12]}  c5 {[%clk 0:01:55]} 21. h6 {[%clk 0:02:10]}  g6 {[%clk 0:01:54]} 22. dxc5 {[%clk 0:02:09]}  bxc5 {[%clk 0:01:54]} 23. Ng3 {[%clk 0:02:05]}  f6 {[%clk 0:01:41]} 24. Rbc1 {[%clk 0:02:00]}  Kf7 {[%clk 0:01:37]} 25. Qe3 {[%clk 0:01:56]}  Rfc8 {[%clk 0:01:25]} 26. Rd2 {[%clk 0:01:52]}  Nf5 {[%clk 0:01:20]} 27. Nxf5 {[%clk 0:01:51]}  gxf5 {[%clk 0:01:21]} 28. Nh4 {[%clk 0:01:49]}  Rg8 {[%clk 0:01:11]} 29. Rxc5 {[%clk 0:01:47]}  Rxc5 {[%clk 0:01:11]} 30. Qxc5 {[%clk 0:01:48]}  Rc8 {[%clk 0:01:08]} 31. Qe3 {[%clk 0:01:48]}  Rc1+ {[%clk 0:00:36]} 32. Kh2 {[%clk 0:01:47]}  Qc8 {[%clk 0:00:26]} 33. Re2 {[%clk 0:01:39]}  Rc2 {[%clk 0:00:24]} 34. Nxf5 {[%clk 0:01:35]}  exf5 {[%clk 0:00:18]} 35. Qe7+ {[%clk 0:01:33]}  Kg6 {[%clk 0:00:18]} 36. Qg7+ {[%clk 0:01:34]}  Kh5 {[%clk 0:00:18]} 37. Qxf6 {[%clk 0:01:34]}  Qg8 {[%clk 0:00:16]} 38. Qxf5+ {[%clk 0:01:34]}  Kxh6 {[%clk 0:00:14]} 39. Re6+ {[%clk 0:01:34]}  Qxe6 {[%clk 0:00:14]} 40. Qxe6+ {[%clk 0:01:34]} 1-0


[Site "https://www.chess.com"]

[Event "Titled Tuesday Blitz February 22 Late 2022"]
[White "P., Komal Kishore"]
[Black "Toncheva, Nadya"]
[WhiteFideId "5016703"]
[BlackFideId "2924056"]
[WhiteElo "2035"]
[BlackElo "1920"]
[Result "1-0"]
[Round "05"]
[TimeControl "180+1"]
[Date "2022.02.23"]
[WhiteClock "0:00:56"]
[BlackClock "0:00:55"]

1. e4 {[%clk 0:03:00]}  c5 {[%clk 0:02:59]} 2. Nf3 {[%clk 0:03:00]}  d6 {[%clk 0:02:59]} 3. Bb5+ {[%clk 0:03:00]}  Nc6 {[%clk 0:02:59]} 4. O-O {[%clk 0:02:58]}  Bd7 {[%clk 0:02:59]} 5. c3 {[%clk 0:02:56]}  a6 {[%clk 0:02:59]} 6. Ba4 {[%clk 0:02:56]}  Nf6 {[%clk 0:02:59]} 7. Re1 {[%clk 0:02:55]}  g6 {[%clk 0:02:59]} 8. d4 {[%clk 0:02:54]}  cxd4 {[%clk 0:02:59]} 9. cxd4 {[%clk 0:02:54]}  Bg7 {[%clk 0:02:59]} 10. Nc3 {[%clk 0:02:53]}  b5 {[%clk 0:02:59]} 11. Bb3 {[%clk 0:02:53]}  Bg4 {[%clk 0:02:58]} 12. Be3 {[%clk 0:02:50]}  O-O {[%clk 0:02:57]} 13. h3 {[%clk 0:02:45]}  Bxf3 {[%clk 0:02:53]} 14. Qxf3 {[%clk 0:02:44]}  Nd7 {[%clk 0:02:53]} 15. Rad1 {[%clk 0:02:41]}  e6 {[%clk 0:02:52]} 16. d5 {[%clk 0:02:36]}  Nde5 {[%clk 0:02:44]} 17. Qg3 {[%clk 0:02:31]}  exd5 {[%clk 0:02:33]} 18. Nxd5 {[%clk 0:02:18]}  Nc4 {[%clk 0:02:28]} 19. Bxc4 {[%clk 0:02:11]}  bxc4 {[%clk 0:02:27]} 20. b3 {[%clk 0:02:10]}  cxb3 {[%clk 0:02:24]} 21. axb3 {[%clk 0:02:10]}  Rb8 {[%clk 0:02:25]} 22. Bg5 {[%clk 0:02:02]}  f6 {[%clk 0:01:56]} 23. Bf4 {[%clk 0:01:59]}  Ne5 {[%clk 0:01:51]} 24. f3 {[%clk 0:01:39]}  Rxb3 {[%clk 0:01:38]} 25. Ra1 {[%clk 0:01:38]}  f5 {[%clk 0:01:19]} 26. Rxa6 {[%clk 0:01:15]}  fxe4 {[%clk 0:00:55]} 27. Rxe4 {[%clk 0:01:13]}  Rb1+ {[%clk 0:00:55]} 28. Kh2 {[%clk 0:01:00]}  Qc8 {[%clk 0:00:55]} 29. Ne7+ {[%clk 0:00:56]} 1-0


[Site "https://www.chess.com"]

[Event "Titled Tuesday Blitz February 22 Late 2022"]
[White "Pakleza, Zbigniew"]
[Black "Andreikin, Dmitry"]
[WhiteFideId "1119290"]
[BlackFideId "4158814"]
[WhiteElo "2467"]
[BlackElo "2736"]
[Result "1-0"]
[Round "05"]
[TimeControl "180+1"]
[Date "2022.02.22"]
[WhiteClock "0:00:16"]
[BlackClock "0:00:04"]

1. d4 {[%clk 0:03:00]}  Nf6 {[%clk 0:02:58]} 2. Nf3 {[%clk 0:03:00]}  e6 {[%clk 0:02:55]} 3. Bf4 {[%clk 0:03:00]}  b6 {[%clk 0:02:49]} 4. e3 {[%clk 0:03:00]}  Bb7 {[%clk 0:02:50]} 5. h3 {[%clk 0:03:00]}  Bd6 {[%clk 0:02:47]} 6. Bxd6 {[%clk 0:02:59]}  cxd6 {[%clk 0:02:48]} 7. Nbd2 {[%clk 0:03:00]}  d5 {[%clk 0:02:48]} 8. Be2 {[%clk 0:02:59]}  O-O {[%clk 0:02:48]} 9. O-O {[%clk 0:03:00]}  Nc6 {[%clk 0:02:45]} 10. c4 {[%clk 0:02:51]}  Ne7 {[%clk 0:02:36]} 11. Qb3 {[%clk 0:02:40]}  Ng6 {[%clk 0:02:34]} 12. Rfc1 {[%clk 0:02:38]}  Qe7 {[%clk 0:02:30]} 13. a4 {[%clk 0:02:32]}  dxc4 {[%clk 0:02:22]} 14. Nxc4 {[%clk 0:02:30]}  Bd5 {[%clk 0:02:17]} 15. Qa3 {[%clk 0:02:30]}  Qxa3 {[%clk 0:01:58]} 16. Nxa3 {[%clk 0:02:31]}  Rfc8 {[%clk 0:01:55]} 17. Nb5 {[%clk 0:02:17]}  Bc6 {[%clk 0:01:47]} 18. Nd6 {[%clk 0:02:08]}  Rcb8 {[%clk 0:01:47]} 19. Ne5 {[%clk 0:02:04]}  Nxe5 {[%clk 0:01:42]} 20. dxe5 {[%clk 0:02:05]}  Nd5 {[%clk 0:01:30]} 21. Bf3 {[%clk 0:01:44]}  Nb4 {[%clk 0:01:29]} 22. Rc4 {[%clk 0:01:37]}  a5 {[%clk 0:01:26]} 23. Bxc6 {[%clk 0:01:27]}  dxc6 {[%clk 0:01:25]} 24. Rd1 {[%clk 0:01:20]}  h6 {[%clk 0:01:18]} 25. Rcd4 {[%clk 0:01:02]}  Nd5 {[%clk 0:00:50]} 26. g3 {[%clk 0:00:42]}  b5 {[%clk 0:00:49]} 27. e4 {[%clk 0:00:41]}  Ne7 {[%clk 0:00:37]} 28. Rc1 {[%clk 0:00:22]}  bxa4 {[%clk 0:00:34]} 29. Rxa4 {[%clk 0:00:23]}  Rxb2 {[%clk 0:00:33]} 30. Rc5 {[%clk 0:00:24]}  g5 {[%clk 0:00:20]} 31. Rcxa5 {[%clk 0:00:22]}  Rxa5 {[%clk 0:00:19]} 32. Rxa5 {[%clk 0:00:23]}  Rb8 {[%clk 0:00:13]} 33. Ra7 {[%clk 0:00:20]}  Kf8 {[%clk 0:00:13]} 34. Rc7 {[%clk 0:00:19]}  Ra8 {[%clk 0:00:09]} 35. Kg2 {[%clk 0:00:18]}  Ra5 {[%clk 0:00:06]} 36. f4 {[%clk 0:00:16]}  gxf4 {[%clk 0:00:05]} 37. gxf4 {[%clk 0:00:17]}  Ra4 {[%clk 0:00:04]} 38. Kf3 {[%clk 0:00:17]}  Ra3+ {[%clk 0:00:04]} 39. Kg4 {[%clk 0:00:18]}  h5+ {[%clk 0:00:05]} 40. Kh4 {[%clk 0:00:18]}  Ng6+ {[%clk 0:00:04]} 41. Kg5 {[%clk 0:00:18]}  Rf3 {[%clk 0:00:03]} 42. Rxf7+ {[%clk 0:00:18]}  Kg8 {[%clk 0:00:04]} 43. Kxg6 {[%clk 0:00:18]}  Rg3+ {[%clk 0:00:04]} 44. Kf6 {[%clk 0:00:18]}  Rxh3 {[%clk 0:00:04]} 45. Rg7+ {[%clk 0:00:16]} 1-0


[Site "https://www.chess.com"]